bitfinex/quotes_BTCUSD_20230118
["timestamp","ask_amount","ask_price","bid_price","bid_amount"]
[1674015958931,1e-08,21291.0,21290.0,2.51193097]
[1674015959668,1e-08,21291.0,21290.0,2.62454391]
[1674015959932,1e-08,21291.0,21290.0,1.60271594]
[1674015960194,1e-08,21291.0,21290.0,1.66123242]
[1674015960380,1e-08,21291.0,21290.0,1.49231594]
[1674015960631,1e-08,21291.0,21290.0,1.17062094]
[1674015961148,1e-08,21291.0,21290.0,1.49231594]
[1674015962179,1e-08,21291.0,21290.0,1.66123242]
[1674015962433,1e-08,21291.0,21290.0,1.49231594]
[1674015962955,1e-08,21291.0,21290.0,1.66123242]
[1674015963244,1e-08,21291.0,21290.0,2.19470475]
[1674015964509,1e-08,21291.0,21290.0,2.52547069]
[1674015965023,1e-08,21291.0,21290.0,2.63801391]
[1674015965538,1e-08,21291.0,21290.0,2.41285775]
[1674015966063,1e-08,21291.0,21290.0,2.5254573]
[1674015966286,1e-08,21291.0,21290.0,2.63801391]
[1674015967099,1e-08,21291.0,21290.0,2.7505427]
[1674015967333,1e-08,21291.0,21290.0,2.46909743]
[1674015967592,1e-08,21291.0,21290.0,2.63598654]
[1674015967850,1e-08,21291.0,21290.0,2.86116277]
[1674015968866,1e-08,21291.0,21290.0,2.5797175]
[1674015969155,1e-08,21291.0,21290.0,2.86116277]
[1674015969373,1e-08,21291.0,21290.0,2.5797175]
[1674015969598,1e-08,21291.0,21290.0,2.86116277]
[1674015969867,1e-08,21291.0,21290.0,2.5797175]
[1674015970116,1e-08,21291.0,21290.0,2.86116277]
[1674015970419,1e-08,21291.0,21290.0,2.5797175]
[1674015970633,1e-08,21291.0,21290.0,2.86116277]
[1674015970921,1e-08,21291.0,21290.0,2.5797175]
[1674015971640,1e-08,21291.0,21290.0,2.86116277]
[1674015973371,1e-08,21291.0,21290.0,3.04658654]
[1674015973627,1e-08,21291.0,21290.0,2.74658654]
[1674015974428,0.0112029,21292.0,21291.0,0.15]
[1674015974708,0.0112029,21292.0,21291.0,2.56740421]
[1674015974959,0.0112029,21292.0,21291.0,2.88908121]
[1674015975724,0.0112029,21292.0,21291.0,2.83008121]
[1674015975991,0.0112029,21292.0,21291.0,2.18409107]
[1674015976244,0.0112029,21292.0,21291.0,2.71576015]
[1674015976510,0.0112029,21292.0,21291.0,2.18409107]
[1674015976786,0.0112029,21292.0,21291.0,1.74294598]
[1674015977045,0.23442967,21292.0,21291.0,1.14288778]
[1674015977310,0.0819429,21292.0,21291.0,1.030364]
[1674015977553,0.0819429,21292.0,21291.0,0.560682]
[1674015977805,0.4037569,21292.0,21291.0,0.560682]
[1674015978103,0.0819429,21292.0,21291.0,0.469682]
[1674015978324,0.0829429,21292.0,21291.0,0.553682]
[1674015978573,0.0819429,21292.0,21291.0,0.469682]
[1674015978833,0.4037569,21292.0,21291.0,0.516682]
[1674015979099,0.4037569,21292.0,21291.0,0.047]
[1674015980087,0.5140569,21292.0,21291.0,0.047]
[1674015981384,0.4037569,21292.0,21291.0,0.047]
[1674015981683,0.0112029,21292.0,21291.0,0.047]
[1674015981952,0.0112029,21292.0,21291.0,0.516682]
[1674015982488,0.01113916,21292.0,21291.0,0.986364]
[1674015983579,0.01113916,21292.0,21291.0,1.308041]
[1674015984110,0.01113916,21292.0,21291.0,1.42056478]
[1674015984667,0.01113916,21292.0,21291.0,1.89024678]
[1674015984923,0.01113916,21292.0,21291.0,2.22106134]
[1674015985203,0.01146607,21293.0,21291.0,2.38984254]
[1674015985469,0.01146607,21293.0,21291.0,2.06816554]
[1674015985724,0.01146607,21293.0,21292.0,0.32166]
[1674015986186,0.01146607,21293.0,21292.0,1.260978]
[1674015986685,0.01146607,21293.0,21292.0,1.37350178]
[1674015987394,0.00646607,21293.0,21292.0,1.260978]
[1674015987633,0.00646607,21293.0,21292.0,1.37350178]
[1674015987894,0.00646607,21293.0,21292.0,1.260978]
[1674015988145,0.00646607,21293.0,21292.0,1.37350178]
[1674015988399,0.01846607,21293.0,21292.0,1.37350178]
[1674015988905,0.03046607,21293.0,21292.0,1.37350178]
[1674015989163,0.00646607,21293.0,21292.0,1.37350178]
[1674015989416,0.01846607,21293.0,21292.0,1.54228298]
[1674015989684,0.00646607,21293.0,21292.0,1.37350178]
[1674015989954,0.00746607,21293.0,21292.0,1.45550178]
[1674015990206,0.00746607,21293.0,21292.0,1.62428298]
[1674015990744,0.00746607,21293.0,21292.0,1.45550178]
[1674015991928,0.00746607,21293.0,21292.0,1.62428298]
[1674015992185,0.00746607,21293.0,21292.0,2.15667413]
[1674015992448,0.00746607,21293.0,21292.0,3.37489309]
[1674015993019,0.00746607,21293.0,21292.0,3.48745775]
[1674015993282,0.00746607,21293.0,21292.0,3.15671501]
[1674015993592,0.00746607,21293.0,21292.0,2.62432386]
[1674015994590,0.00746607,21293.0,21292.0,3.15629965]
[1674015994806,0.00746607,21293.0,21292.0,3.48707304]
[1674015995104,0.00746607,21293.0,21292.0,3.70807304]
[1674015995864,0.00746607,21293.0,21292.0,3.82054997]
[1674015996120,0.00746607,21293.0,21292.0,3.65176877]
[1674015996595,0.00746607,21293.0,21292.0,3.93321404]
[1674015996844,0.00746607,21293.0,21292.0,3.82060308]
[1674015997104,0.00746607,21293.0,21292.0,3.8206033]
[1674015998137,0.00746607,21293.0,21292.0,3.82058783]
[1674016000464,0.00746607,21293.0,21292.0,3.65176877]
[1674016000981,0.00746607,21293.0,21292.0,3.82057064]
[1674016001526,0.00746607,21293.0,21292.0,3.65176877]
[1674016002062,0.00746607,21293.0,21292.0,3.82056139]
[1674016002332,0.00746607,21293.0,21292.0,3.4851198]
[1674016002822,0.00746607,21293.0,21292.0,3.59765355]
[1674016003339,0.00746607,21293.0,21292.0,3.71016139]
[1674016003608,0.00746607,21293.0,21292.0,3.59765378]
[1674016003874,0.00746607,21293.0,21292.0,3.4851198]
[1674016004924,0.00746607,21293.0,21292.0,3.71016139]
[1674016005710,0.00746607,21293.0,21292.0,3.4851198]
[1674016005948,0.00746607,21293.0,21292.0,3.71016139]
[1674016006467,0.00746607,21293.0,21292.0,3.4851198]
[1674016006732,0.00746607,21293.0,21292.0,3.71016139]
[1674016008433,0.00738009,21293.0,21292.0,3.71016139]
[1674016012308,0.00738009,21293.0,21292.0,3.82076139]
[1674016013073,0.00738009,21293.0,21292.0,4.29042039]
[1674016015194,1e-08,21293.0,21292.0,4.29042039]
[1674016016709,1e-08,21293.0,21292.0,4.12162777]
[1674016017499,1e-08,21293.0,21292.0,4.2903942]
[1674016020211,1e-08,21293.0,21292.0,4.40307304]
[1674016020457,1e-08,21293.0,21292.0,3.93341404]
[1674016022781,1e-08,21293.0,21292.0,3.93361109]
[1674016023024,1e-08,21293.0,21292.0,3.70837245]
[1674016023296,1e-08,21293.0,21292.0,3.93364386]
[1674016023502,1e-08,21293.0,21292.0,3.49033115]
[1674016024074,1e-08,21293.0,21292.0,3.49033015]
[1674016024320,1e-08,21293.0,21292.0,2.30290355]
[1674016024683,1e-08,21293.0,21292.0,2.13396855]
[1674016024869,1e-08,21293.0,21292.0,1.79136845]
[1674016025132,0.32181401,21293.0,21292.0,1.082]
[1674016026667,0.43201401,21293.0,21292.0,1.082]
[1674016027395,0.32181401,21293.0,21292.0,1.082]
[1674016027667,0.32181401,21293.0,21292.0,1.053]
[1674016027668,0.322814,21293.0,21292.0,1.053]
[1674016031163,0.001,21293.0,21292.0,1.522659]
[1674016031339,0.001,21293.0,21292.0,2.43652446]
[1674016031602,0.001,21293.0,21292.0,2.75818346]
[1674016032444,0.001,21293.0,21292.0,2.86878346]
[1674016033661,0.001,21293.0,21292.0,2.54712446]
[1674016033889,0.001,21293.0,21292.0,2.21556855]
[1674016034400,0.001,21293.0,21292.0,2.54706821]
[1674016034666,0.001,21293.0,21292.0,2.53722755]
[1674016034959,0.001,21293.0,21292.0,2.54706822]
[1674016035204,0.001,21293.0,21292.0,2.21556855]
[1674016036987,0.001,21293.0,21292.0,2.86875852]
[1674016038037,0.001,21293.0,21292.0,2.75815852]
[1674016038287,0.001,21293.0,21292.0,2.43649952]
[1674016038507,0.001,21293.0,21292.0,2.10496855]
[1674016041665,0.001,21293.0,21292.0,0.469659]
[1674016042189,0.001,21293.0,21292.0,0.939318]
[1674016045033,0.001,21293.0,21292.0,0.93762776]
[1674016045294,0.001,21293.0,21292.0,1.04772776]
[1674016045558,0.001,21293.0,21292.0,2.07540135]
[1674016046917,0.001,21293.0,21292.0,2.18600135]
[1674016048274,0.01147241,21295.0,21293.0,0.15]
[1674016048520,0.01147241,21295.0,21294.0,0.93923]
[1674016048812,0.01147241,21295.0,21294.0,1.77392119]
[1674016049307,0.01147241,21295.0,21294.0,1.410855]
[1674016049601,0.01147241,21295.0,21294.0,1.450855]
[1674016049602,0.01647241,21295.0,21294.0,1.450855]
[1674016050139,0.01647241,21295.0,21294.0,1.300855]
[1674016050392,0.01647241,21295.0,21294.0,0.97923]
[1674016051738,0.01647241,21295.0,21294.0,0.509615]
[1674016052288,0.01147241,21295.0,21294.0,0.469615]
[1674016052537,0.01647241,21295.0,21294.0,0.505615]
[1674016052787,0.01647241,21295.0,21294.0,0.97523]
[1674016053292,0.03753966,21295.0,21294.0,0.97523]
[1674016054068,0.03253966,21295.0,21294.0,0.93923]
[1674016054852,0.03253966,21295.0,21294.0,1.08923]
[1674016055096,0.03253966,21295.0,21294.0,0.93923]
[1674016055570,0.03753966,21295.0,21294.0,0.97523]
[1674016055808,0.03753966,21295.0,21294.0,1.12523]
[1674016057053,0.03753966,21295.0,21294.0,1.48828603]
[1674016057577,0.03753966,21295.0,21294.0,1.48831714]
[1674016057846,0.03753966,21295.0,21294.0,1.12523]
[1674016058106,0.03753966,21295.0,21294.0,0.97523]
[1674016058358,0.03753966,21295.0,21294.0,1.12523]
[1674016058623,0.03753966,21295.0,21294.0,1.48845417]
[1674016058889,0.03753966,21295.0,21294.0,1.81007817]
[1674016060163,0.03753966,21295.0,21294.0,1.92254157]
[1674016060669,0.03753966,21295.0,21294.0,1.81007817]
[1674016061153,0.03753966,21295.0,21294.0,1.92254157]
[1674016061394,0.03753966,21295.0,21294.0,1.81007817]
[1674016063411,0.03753966,21295.0,21294.0,1.92254157]
[1674016063925,0.03753966,21295.0,21294.0,1.81007817]
[1674016064449,0.03753966,21295.0,21294.0,2.14374157]
[1674016068031,0.03753966,21295.0,21294.0,2.03314157]
[1674016068268,0.03753966,21295.0,21294.0,2.54312606]
[1674016068524,0.03753966,21295.0,21294.0,2.43066266]
[1674016068783,0.03744558,21295.0,21294.0,2.76616779]
[1674016069030,0.03744558,21295.0,21294.0,2.59750621]
[1674016069497,0.03744558,21295.0,21294.0,3.06436634]
[1674016069996,0.01232342,21296.0,21295.0,0.16315026]
[1674016070245,0.01232342,21296.0,21295.0,2.74148947]
[1674016070757,0.01232342,21296.0,21295.0,2.40680927]
[1674016071285,0.01732342,21296.0,21295.0,2.44780927]
[1674016071766,0.01732342,21296.0,21295.0,2.56015576]
[1674016072051,0.01732342,21296.0,21295.0,2.44780927]
[1674016072310,0.01732342,21296.0,21295.0,2.78308947]
[1674016073094,0.01732342,21296.0,21295.0,2.61457932]
[1674016073352,0.01732342,21296.0,21295.0,2.78306522]
[1674016074373,0.01732342,21296.0,21295.0,2.52071548]
[1674016075129,0.01732342,21296.0,21295.0,2.16624231]
[1674016075348,0.01732342,21296.0,21295.0,2.50451001]
[1674016075571,0.01732342,21296.0,21295.0,2.39217955]
[1674016076611,0.01732342,21296.0,21295.0,2.50451238]
[1674016076859,0.01732342,21296.0,21295.0,3.02953911]
[1674016077106,0.01732342,21296.0,21295.0,2.74837385]
[1674016077345,0.01732342,21296.0,21295.0,2.6168441]
[1674016078182,0.01732342,21296.0,21295.0,2.44837385]
[1674016078902,0.01732342,21296.0,21295.0,2.91685839]
[1674016079152,0.01732342,21296.0,21295.0,2.44837385]
[1674016080396,0.01732342,21296.0,21295.0,2.61687904]
[1674016082041,0.01732342,21296.0,21295.0,2.39219884]
[1674016082292,0.01732342,21296.0,21295.0,2.61687904]
[1674016083540,0.01732342,21296.0,21295.0,2.17149884]
[1674016083795,0.01732342,21296.0,21295.0,1.59936021]
[1674016084280,0.01732342,21296.0,21295.0,1.44447854]
[1674016084500,0.01732342,21296.0,21295.0,1.95160545]
[1674016084762,0.01732342,21296.0,21295.0,2.27321145]
[1674016085291,0.01732342,21296.0,21295.0,2.27331728]
[1674016086039,0.01732342,21296.0,21295.0,2.16091596]
[1674016087105,0.01732342,21296.0,21295.0,2.38559616]
[1674016087555,0.01732342,21296.0,21295.0,2.16091596]
[1674016088080,0.01732342,21296.0,21295.0,2.16095452]
[1674016088332,0.01732342,21296.0,21295.0,1.59990527]
[1674016088592,0.01232342,21296.0,21295.0,1.61310762]
[1674016088857,0.01232342,21296.0,21295.0,1.48702277]
[1674016089188,0.01232342,21296.0,21295.0,1.59950186]
[1674016089671,0.01232342,21296.0,21295.0,1.59951525]
[1674016089916,0.01232342,21296.0,21295.0,1.09266509]
[1674016090170,0.01232342,21296.0,21295.0,0.041]
[1674016091000,0.00732342,21296.0,21294.0,1.22019728]
[1674016091254,0.00732342,21296.0,21295.0,0.15347909]
[1674016091255,0.01232342,21296.0,21295.0,0.15347909]
[1674016091530,0.01232342,21296.0,21295.0,0.11247909]
[1674016091786,0.01732342,21296.0,21295.0,0.15347909]
[1674016092050,0.00732342,21296.0,21295.0,1.05166509]
[1674016092577,0.00732342,21296.0,21295.0,0.58207209]
[1674016092831,0.01232342,21296.0,21295.0,0.58207209]
[1674016093134,0.00732342,21296.0,21295.0,0.58207209]
[1674016093397,0.01332342,21296.0,21295.0,0.14547909]
[1674016093654,0.01332342,21296.0,21295.0,0.033]
[1674016093909,0.01332342,21296.0,21295.0,0.502593]
[1674016094179,0.00732342,21296.0,21295.0,0.469593]
[1674016094665,0.01232342,21296.0,21295.0,0.61507209]
[1674016094939,0.01232342,21296.0,21295.0,0.502593]
[1674016095449,0.01232342,21296.0,21295.0,0.61507209]
[1674016096490,0.01232342,21296.0,21295.0,0.502593]
[1674016098050,0.01232342,21296.0,21295.0,0.033]
[1674016098342,0.01232342,21296.0,21295.0,1.08466509]
[1674016098580,0.01232342,21296.0,21295.0,1.75849595]
[1674016098858,0.01232342,21296.0,21295.0,2.37514877]
[1674016099372,0.01232342,21296.0,21295.0,1.79824371]
[1674016099627,0.01232342,21296.0,21295.0,1.47663771]
[1674016099884,0.01232342,21296.0,21295.0,1.08471718]
[1674016100718,0.01232342,21296.0,21295.0,1.25322237]
[1674016100998,0.01232342,21296.0,21295.0,1.58928204]
[1674016101253,0.01232342,21296.0,21295.0,1.08471718]
[1674016101744,0.01232342,21296.0,21295.0,1.25322237]
[1674016102008,0.01232342,21296.0,21295.0,1.58929262]
[1674016102348,0.01232342,21296.0,21295.0,1.25322237]
[1674016102796,0.01232342,21296.0,21295.0,1.96203654]
[1674016103072,0.01232342,21296.0,21295.0,2.16421332]
[1674016103635,0.01232342,21296.0,21295.0,2.48581932]
[1674016103872,0.01232342,21296.0,21295.0,2.13364254]
[1674016104613,0.01232342,21296.0,21295.0,2.48570931]
[1674016104871,0.01232342,21296.0,21295.0,2.31720412]
[1674016105123,0.01232342,21296.0,21295.0,2.59836938]
[1674016105375,0.01232342,21296.0,21295.0,2.31720412]
[1674016106386,0.01232342,21296.0,21295.0,2.59880637]
[1674016106603,0.50149347,21300.0,21295.0,2.59880637]
[1674016106907,0.50149347,21300.0,21297.0,0.11255876]
[1674016107158,0.50149347,21300.0,21298.0,0.469527]
[1674016107679,0.55449347,21300.0,21298.0,0.469527]
[1674016108192,0.11939347,21300.0,21298.0,1.44193761]
[1674016108453,0.01339347,21300.0,21299.0,0.321539]
[1674016108788,0.01339347,21300.0,21299.0,0.469505]
[1674016110504,0.06639347,21300.0,21299.0,0.473505]
[1674016114842,0.06639347,21300.0,21299.0,0.94301]
[1674016115866,0.06639347,21300.0,21299.0,0.473505]
[1674016117885,0.06639347,21300.0,21299.0,0.004]
[1674016118137,0.38820747,21300.0,21299.0,0.004]
[1674016118376,0.60940747,21300.0,21299.0,0.004]
[1674016119133,1.02000747,21300.0,21299.0,0.004]
[1674016119399,1.63949047,21300.0,21299.0,0.004]
[1674016120409,2.10897347,21300.0,21299.0,0.004]
[1674016121175,1.95897347,21300.0,21299.0,0.004]
[1674016122198,3.01041709,21300.0,21299.0,0.004]
[1674016122960,3.01891709,21300.0,21299.0,0.004]
[1674016123214,2.90682751,21300.0,21299.0,0.004]
[1674016123429,1.96747347,21300.0,21299.0,0.004]
[1674016124740,1.66747347,21300.0,21299.0,0.004]
[1674016125467,1.55687347,21300.0,21299.0,0.004]
[1674016125715,0.60940747,21300.0,21299.0,0.004]
[1674016125978,1.07889047,21300.0,21299.0,0.004]
[1674016126498,0.60940747,21300.0,21299.0,0.004]
[1674016129934,0.90940747,21300.0,21299.0,0.004]
[1674016130743,1.05940747,21300.0,21299.0,0.004]
[1674016131004,1.52889047,21300.0,21299.0,0.004]
[1674016131505,1.37889047,21300.0,21299.0,0.004]
[1674016131774,0.90940747,21300.0,21299.0,0.004]
[1674016132038,0.60940747,21300.0,21299.0,0.004]
[1674016133915,1.07889047,21300.0,21299.0,0.004]
[1674016135620,0.60940747,21300.0,21299.0,0.004]
[1674016137390,0.60940747,21300.0,21296.0,0.26510975]
[1674016137641,0.432414,21299.0,21296.0,0.26510975]
[1674016137904,0.321814,21298.0,21296.0,0.26510975]
[1674016138155,0.17699347,21300.0,21297.0,0.04535311]
[1674016138156,0.01339347,21300.0,21297.0,0.04535311]
[1674016138422,0.07839347,21300.0,21297.0,0.51489911]
[1674016138698,0.12359347,21300.0,21297.0,0.51489911]
[1674016140263,0.18859347,21300.0,21297.0,0.51789911]
[1674016140870,0.321814,21299.0,21297.0,0.51789911]
[1674016141283,0.18859347,21300.0,21297.0,0.51789911]
[1674016141782,0.321814,21299.0,21297.0,0.04835311]
[1674016142035,0.321814,21298.0,21297.0,0.04835311]
[1674016142824,0.321814,21298.0,21297.0,0.04535311]
[1674016143066,0.004,21298.0,21297.0,0.07135311]
[1674016143396,0.325814,21298.0,21297.0,0.07135311]
[1674016145522,0.436414,21298.0,21297.0,0.026]
[1674016147095,0.905941,21298.0,21297.0,0.026]
[1674016148642,0.436414,21298.0,21297.0,0.026]
[1674016150913,0.905941,21298.0,21297.0,0.026]
[1674016152179,0.436414,21298.0,21297.0,0.026]
[1674016152434,0.546214,21298.0,21297.0,0.026]
[1674016152696,0.004,21298.0,21297.0,0.026]
[1674016155504,0.325814,21298.0,21297.0,0.026]
[1674016156839,0.004,21298.0,21297.0,0.026]
[1674016157554,0.325814,21298.0,21297.0,0.026]
[1674016158604,0.004,21298.0,21297.0,0.026]
[1674016160395,0.00392088,21298.0,21297.0,0.026]
[1674016170454,0.00392088,21298.0,21297.0,0.495549]
[1674016173203,0.0249151,21298.0,21297.0,0.495549]
[1674016174252,0.0249151,21298.0,21297.0,1.39922676]
[1674016174515,0.0249151,21298.0,21297.0,1.5680649]
[1674016174774,0.0249151,21298.0,21297.0,1.63055635]
[1674016175023,0.0249151,21298.0,21297.0,1.2464949]
[1674016175285,0.0249151,21298.0,21297.0,1.07765676]
[1674016176084,0.0249151,21298.0,21297.0,1.2464949]
[1674016176329,0.0249151,21298.0,21297.0,1.6305017]
[1674016176577,0.0249151,21298.0,21297.0,1.9520717]
[1674016177544,0.0249151,21298.0,21297.0,1.07765676]
[1674016178523,0.0249151,21298.0,21297.0,1.39922676]
[1674016178789,0.0249151,21298.0,21297.0,1.07765676]
[1674016179038,0.0249151,21298.0,21297.0,0.92967776]
[1674016179567,0.0249151,21298.0,21297.0,0.60810776]
[1674016181386,0.0249151,21298.0,21297.0,1.07765676]
[1674016183147,0.0249151,21298.0,21297.0,1.39922676]
[1674016183392,0.0247966,21298.0,21297.0,1.5680649]
[1674016184099,0.0247966,21298.0,21297.0,1.39922676]
[1674016185076,0.0247966,21298.0,21297.0,1.5680649]
[1674016186668,0.0247966,21298.0,21297.0,1.96438526]
[1674016186922,0.0247966,21298.0,21297.0,1.96438476]
[1674016187452,0.00380238,21298.0,21297.0,1.5680649]
[1674016187701,0.00380238,21298.0,21297.0,1.39922676]
[1674016187962,0.00380238,21298.0,21297.0,2.53030603]
[1674016188217,0.00380238,21298.0,21297.0,2.53034074]
[1674016188468,0.00380238,21298.0,21297.0,2.5302692]
[1674016188709,0.00380238,21298.0,21297.0,2.53026747]
[1674016188983,0.00380238,21298.0,21297.0,2.3615026]
[1674016190016,0.00380238,21298.0,21297.0,2.53025984]
[1674016190265,0.00380238,21298.0,21297.0,1.96232417]
[1674016190774,0.00380238,21298.0,21297.0,2.18744136]
[1674016191564,0.00380238,21298.0,21297.0,1.96232417]
[1674016192319,0.00380238,21298.0,21297.0,1.85172417]
[1674016193094,0.00380238,21298.0,21297.0,2.07684136]
[1674016194108,0.00380238,21298.0,21297.0,1.90808412]
[1674016195411,0.00800694,21300.0,21298.0,0.18242058]
[1674016195733,0.00800694,21300.0,21299.0,1.05150085]
[1674016195950,0.00800694,21300.0,21299.0,1.37303585]
[1674016196486,0.03800694,21300.0,21299.0,1.37303485]
[1674016196736,0.00800694,21300.0,21299.0,1.37303485]
[1674016197006,0.03800694,21300.0,21299.0,1.37803485]
[1674016197281,0.03800694,21300.0,21299.0,1.37303485]
[1674016197513,0.04100694,21300.0,21299.0,1.43503485]
[1674016197758,0.04100694,21300.0,21299.0,1.11350085]
[1674016198546,0.04100694,21300.0,21299.0,1.43503485]
[1674016199325,0.04100694,21300.0,21299.0,1.11350085]
[1674016202523,0.04100694,21300.0,21299.0,1.11340077]
[1674016202810,0.04100694,21300.0,21299.0,2.565439]
[1674016203036,0.04100694,21300.0,21299.0,2.39670273]
[1674016203547,0.04100694,21300.0,21299.0,2.67786799]
[1674016203821,0.04100694,21300.0,21299.0,2.56532775]
[1674016204324,0.04100694,21300.0,21299.0,2.39670273]
[1674016205123,0.04100694,21300.0,21299.0,2.67786799]
[1674016205410,0.04100694,21300.0,21299.0,1.9976543]
[1674016206230,0.04100694,21300.0,21299.0,1.60173287]
[1674016206489,0.03600694,21300.0,21299.0,2.22297762]
[1674016206732,0.03600694,21300.0,21299.0,2.56581937]
[1674016207246,0.03600694,21300.0,21299.0,2.22297762]
[1674016207774,0.03600694,21300.0,21299.0,1.60173287]
[1674016208243,0.03600694,21300.0,21299.0,1.433144]
[1674016209008,0.03600694,21300.0,21299.0,2.23989116]
[1674016209754,0.03600694,21300.0,21299.0,2.58258831]
[1674016210120,0.03600694,21300.0,21299.0,2.6951647]
[1674016210339,0.03600694,21300.0,21299.0,2.23988533]
[1674016210617,0.03600694,21300.0,21299.0,2.01486057]
[1674016211121,0.03600694,21300.0,21299.0,2.01487795]
[1674016211431,0.02100694,21300.0,21299.0,2.01487795]
[1674016214109,0.02100694,21300.0,21299.0,2.23988405]
[1674016215372,0.02100694,21300.0,21299.0,2.07130101]
[1674016215626,0.02100694,21300.0,21299.0,2.35246627]
[1674016216633,0.02100694,21300.0,21299.0,2.52109902]
[1674016216938,0.02100694,21300.0,21299.0,2.1273587]
[1674016217171,0.02100694,21300.0,21299.0,2.01492766]
[1674016217948,0.02100694,21300.0,21299.0,2.12735798]
[1674016218451,0.02100694,21300.0,21299.0,2.12736769]
[1674016218702,0.02100694,21300.0,21299.0,2.58264217]
[1674016218999,0.02100694,21300.0,21299.0,2.23993376]
[1674016220273,0.02100694,21300.0,21299.0,2.07130101]
[1674016223801,0.02100694,21300.0,21299.0,2.35246627]
[1674016224877,0.02100694,21300.0,21299.0,2.69512135]
[1674016225136,0.01838392,21301.0,21300.0,0.16546284]
[1674016225389,0.01838392,21301.0,21300.0,2.62402003]
[1674016225748,0.01838392,21301.0,21300.0,2.72062705]
[1674016226552,0.01838392,21301.0,21300.0,2.84999082]
[1674016226810,0.01838392,21301.0,21300.0,2.63699082]
[1674016227105,0.01838392,21301.0,21300.0,3.01947382]
[1674016227356,0.01838392,21301.0,21300.0,3.31947382]
[1674016227633,0.01838392,21301.0,21300.0,3.43947382]
[1674016227894,0.01838392,21301.0,21300.0,3.31947382]
[1674016228383,0.01838392,21301.0,21300.0,3.43947382]
[1674016228891,0.01838392,21301.0,21300.0,3.13947382]
[1674016229134,0.01838392,21301.0,21300.0,3.420508]
[1674016229663,0.01838392,21301.0,21300.0,3.270508]
[1674016229903,0.01838392,21301.0,21300.0,3.27465997]
[1674016230157,0.01838392,21301.0,21300.0,2.93206131]
[1674016230417,0.01838392,21301.0,21300.0,3.16038758]
[1674016230674,0.01838392,21301.0,21300.0,3.38524696]
[1674016230980,0.01838392,21301.0,21300.0,2.76163454]
[1674016231458,0.01838392,21301.0,21300.0,3.04266872]
[1674016231705,0.01838392,21301.0,21300.0,3.38569649]
[1674016231975,0.01838392,21301.0,21300.0,3.16083711]
[1674016232246,0.01838392,21301.0,21300.0,3.16076818]
[1674016233243,0.01838392,21301.0,21300.0,2.879734]
[1674016233749,0.01838392,21301.0,21300.0,3.1608373]
[1674016234002,0.01838392,21301.0,21300.0,2.879734]
[1674016234476,0.01838392,21301.0,21300.0,3.179734]
[1674016237483,0.01838392,21301.0,21300.0,3.290334]
[1674016238253,0.01838392,21301.0,21300.0,3.76753569]
[1674016239283,0.01838392,21301.0,21300.0,4.63507887]
[1674016240506,0.01838392,21301.0,21300.0,3.99763898]
[1674016240758,0.01838392,21301.0,21300.0,3.46872269]
[1674016241019,0.01838392,21301.0,21300.0,2.88783679]
[1674016241290,0.01838392,21301.0,21300.0,2.70863646]
[1674016241553,0.01838392,21301.0,21300.0,2.38900161]
[1674016241814,0.01838392,21301.0,21300.0,2.2202891]
[1674016242070,0.01838392,21301.0,21300.0,2.38900179]
[1674016242360,0.01838392,21301.0,21300.0,2.2202891]
[1674016242572,0.01838392,21301.0,21300.0,2.38900941]
[1674016242825,0.01838392,21301.0,21300.0,2.2202891]
[1674016244864,0.01838392,21301.0,21300.0,2.38902018]
[1674016246099,0.018274,21301.0,21300.0,2.38902018]
[1674016247374,0.018274,21301.0,21300.0,1.91953718]
[1674016248425,0.018274,21301.0,21300.0,2.26986333]
[1674016248699,0.018274,21301.0,21300.0,2.38225432]
[1674016248902,0.018274,21301.0,21300.0,2.0319804]
[1674016249403,0.018274,21301.0,21300.0,2.38215133]
[1674016249651,0.018274,21301.0,21300.0,2.70366733]
[1674016250399,0.018274,21301.0,21300.0,2.70369786]
[1674016250649,0.018274,21301.0,21300.0,2.03201093]
[1674016252159,0.018274,21301.0,21300.0,2.38216858]
[1674016252472,0.018274,21301.0,21300.0,2.30793681]
[1674016252695,0.018274,21301.0,21300.0,2.58917306]
[1674016255571,0.018274,21301.0,21300.0,2.35363695]
[1674016255834,0.018274,21301.0,21300.0,2.03212095]
[1674016256088,0.018274,21301.0,21300.0,1.7508847]
[1674016256437,0.018274,21301.0,21300.0,1.80715008]
[1674016256600,0.018274,21301.0,21300.0,1.69463424]
[1674016256872,0.018274,21301.0,21300.0,1.80714778]
[1674016257681,0.018274,21301.0,21300.0,1.18694238]
[1674016257682,0.128374,21301.0,21300.0,1.18694238]
[1674016257916,0.450188,21301.0,21300.0,0.13546284]
[1674016258222,0.569288,21301.0,21300.0,0.13546284]
[1674016258731,0.569288,21301.0,21300.0,0.01546284]
[1674016258983,0.569288,21301.0,21300.0,0.11646284]
[1674016259242,0.569288,21301.0,21300.0,0.01546284]
[1674016259513,0.569288,21301.0,21300.0,0.11746284]
[1674016261588,1.444349,21301.0,21300.0,0.11746284]
[1674016261825,1.594349,21301.0,21300.0,0.11746284]
[1674016262363,1.444349,21301.0,21300.0,0.11746284]
[1674016262614,1.61381,21301.0,21300.0,0.11746284]
[1674016262933,1.80371,21301.0,21300.0,0.11746284]
[1674016264602,1.80371,21301.0,21296.0,0.469555]
[1674016264603,1.80371,21301.0,21295.0,0.8262722]
[1674016264874,1.63391498,21300.0,21294.0,0.469608]
[1674016265128,0.1097,21295.0,21294.0,0.469608]
[1674016265425,0.47430077,21295.0,21294.0,0.469608]
[1674016265656,0.432414,21295.0,21294.0,0.469608]
[1674016266202,0.439414,21295.0,21294.0,0.016]
[1674016266452,0.439414,21295.0,21293.0,0.94572481]
[1674016266453,0.432414,21295.0,21293.0,0.94572481]
[1674016266720,0.1176,21295.0,21294.0,0.016]
[1674016266984,0.439414,21295.0,21294.0,0.016]
[1674016267256,0.549214,21295.0,21294.0,0.016]
[1674016267514,0.549214,21295.0,21292.0,0.469642]
[1674016267515,0.542214,21295.0,21292.0,0.469642]
[1674016267774,0.431414,21294.0,21293.0,0.015]
[1674016268066,0.542014,21294.0,21292.0,0.469642]
[1674016268338,0.1099,21293.0,21292.0,0.469642]
[1674016268599,0.431714,21293.0,21292.0,0.469642]
[1674016269406,0.431714,21293.0,21291.0,0.48116885]
[1674016269666,0.1099,21293.0,21291.0,0.01150585]
[1674016270193,0.321814,21292.0,21291.0,0.01150585]
[1674016270452,0.1179,21293.0,21291.0,0.01150585]
[1674016270706,0.2197,21292.0,21291.0,0.48118785]
[1674016270990,0.2197,21292.0,21291.0,0.02037351]
[1674016270991,0.541514,21292.0,21291.0,0.02037351]